fUSD/lending_fUSD_20251017
["ID","MTS","AMOUNT","RATE_DAILY","PERIOD"]
[391615265,1760706669180,-500.0,0.00024657,2]
[391615266,1760706669190,-500.0,0.00024657,2]
[391615267,1760706669200,-500.0,0.00024657,2]
[391615268,1760706669210,-543.44,0.00024657,2]
[391615269,1760706669221,-500.0,0.00024657,2]
[391615270,1760706669231,-500.0,0.00024657,2]
[391615271,1760706669241,-500.0,0.00024657,2]
[391615272,1760706669251,-500.0,0.00024657,2]
[391615273,1760706669261,-500.0,0.00024657,2]
[391615274,1760706669270,-500.0,0.00024657,2]
[391615275,1760706669280,-1701.03,0.00024657,2]
[391615276,1760706669290,-500.0,0.00024657,2]
[391615277,1760706669300,-500.0,0.00024657,2]
[391615278,1760706669310,-1140.2,0.00024657,2]
[391615279,1760706669320,-500.0,0.00024657,2]
[391615280,1760706669330,-500.0,0.00024657,2]
[391615281,1760706669341,-500.0,0.00024657,2]
[391615282,1760706669351,-500.0,0.00024657,2]
[391615283,1760706669361,-500.0,0.00024657,2]
[391615284,1760706669371,-500.0,0.00024657,2]
[391615285,1760706669381,-500.5829998,0.00024657,2]
[391615286,1760706669391,-1288.92,0.00024657,2]
[391615287,1760706669400,-500.0,0.00024657,2]
[391615288,1760706669410,-500.0,0.00024657,2]
[391615289,1760706669419,-500.0,0.00024657,2]
[391615290,1760706669429,-500.0,0.00024657,2]
[391615291,1760706669438,-502.96549596,0.00024657,2]
[391615292,1760706669448,-500.0,0.00024657,2]
[391615293,1760706669457,-500.0,0.00024657,2]
[391615294,1760706669469,-500.0,0.00024657,2]
[391615295,1760706669483,-527.72635448,0.00024657,2]
[391615296,1760706669494,-1387.94,0.00024657,2]
[391615297,1760706669504,-3652.14,0.00024657,2]
[391615298,1760706669513,-501.41803058,0.00024657,2]
[391615299,1760706669522,-500.0,0.00024657,2]
[391615300,1760706669531,-500.0,0.00024657,2]
[391615301,1760706669542,-427.97576268,0.00024657,2]
[391615302,1760706669551,-642.2648725,0.00024657,2]
[391615303,1760706669561,-524.27956735,0.00024657,2]
[391615304,1760706669571,-500.0,0.00024657,2]
[391615305,1760706669582,-500.0,0.00024657,2]
[391615306,1760706669592,-579.22,0.00024657,2]
[391615307,1760706669602,-579.22,0.00024657,2]
[391615308,1760706669612,-579.22,0.00024657,2]
[391615309,1760706669623,-507.14257142,0.00024657,2]
[391615310,1760706669636,-579.22,0.00024657,2]
[391615311,1760706669646,-579.22,0.00024657,2]
[391615312,1760706669656,-579.22,0.00024657,2]
[391615313,1760706669667,-579.22,0.00024657,2]
[391615314,1760706669677,-500.0,0.00024657,2]
[391615315,1760706669687,-579.22,0.00024657,2]
[391615316,1760706669697,-579.22,0.00024657,2]
[391615317,1760706669707,-579.22,0.00024657,2]
[391615318,1760706669717,-579.22,0.00024657,2]
[391615319,1760706669726,-579.22,0.00024657,2]
[391615320,1760706669737,-579.22,0.00024657,2]
[391615321,1760706669747,-579.22,0.00024657,2]
[391615322,1760706669757,-501.44334375,0.00024657,2]
[391615323,1760706669767,-579.22,0.00024657,2]
[391615324,1760706669778,-579.22,0.00024657,2]
[391615325,1760706669787,-579.22,0.00024657,2]
[391615326,1760706669797,-500.0,0.00024657,2]
[391615327,1760706669807,-579.22,0.00024657,2]
[391615328,1760706669816,-579.22,0.00024657,2]
[391615329,1760706669826,-579.22,0.00024657,2]
[391615330,1760706669836,-579.22,0.00024657,2]
[391615331,1760706669846,-579.22,0.00024657,2]
[391615332,1760706669856,-579.22,0.00024657,2]
[391615333,1760706669866,-500.86070952,0.00024657,2]
[391615334,1760706669876,-1998.52,0.00024657,2]
[391615335,1760706669885,-579.29571642,0.00024657,2]
[391615336,1760706669895,-500.0,0.00024657,2]
[391615337,1760706669904,-500.0,0.00024657,2]
[391615338,1760706669914,-511.22,0.00024657,2]
[391615339,1760706669924,-500.0,0.00024657,2]
[391615340,1760706669937,-500.84820284,0.00024657,2]
[391615341,1760706669948,-500.0,0.00024657,2]
[391615342,1760706669957,-780.1,0.00024657,2]
[391615343,1760706669967,-500.0,0.00024657,2]
[391615344,1760706669979,-502.3152745,0.00024657,2]
[391615345,1760706669990,-423.08213886,0.00024657,2]
[391615346,1760706670000,-500.0,0.00024657,2]
[391615347,1760706670013,-500.33929245,0.00024657,2]
[391615348,1760706670023,-500.0,0.00024657,2]
[391615349,1760706670032,-500.0,0.00024657,2]
[391615350,1760706670042,-502.03334673,0.00024657,2]
[391615351,1760706670051,-3252.66,0.00024657,2]
[391615352,1760706670062,-501.03046673,0.00024657,2]
[391615353,1760706670071,-500.0,0.00024657,2]
[391615354,1760706670083,-500.68949286,0.00024657,2]
[391615355,1760706670093,-502.16608863,0.00024657,2]
[391615356,1760706670103,-500.0,0.00024657,2]
[391615357,1760706670113,-522.52691447,0.00024657,2]
[391615358,1760706670123,-507.526747,0.00024657,2]
[391615359,1760706670132,-500.0,0.00024657,2]
[391615360,1760706670142,-500.0,0.00024657,2]
[391615361,1760706670151,-500.0,0.00024657,2]
[391615362,1760706670161,-500.0,0.00024657,2]
[391615363,1760706670171,-500.0,0.00024657,2]
[391615364,1760706670181,-501.26944244,0.00024657,2]
[391615365,1760706670191,-500.0,0.00024657,2]
[391615366,1760706670200,-500.0,0.00024657,2]
[391615367,1760706670210,-515.41265871,0.00024657,2]
[391615368,1760706670220,-509.75192784,0.00024657,2]
[391615369,1760706670230,-500.0,0.00024657,2]
[391615370,1760706670241,-500.0,0.00024657,2]
[391615371,1760706670250,-501.37274405,0.00024657,2]
[391615372,1760706670259,-500.0,0.00024657,2]
[391615373,1760706670269,-501.57016949,0.00024657,2]
[391615374,1760706670279,-500.0,0.00024657,2]
[391615375,1760706670289,-500.0,0.00024657,2]
[391615376,1760706670299,-499.99650782,0.00024657,2]
[391615377,1760706670308,-509.84840888,0.00024657,2]
[391615378,1760706670317,-500.0,0.00024657,2]
[391615379,1760706670327,-500.0,0.00024657,2]
[391615380,1760706670337,-525.98024681,0.00024657,2]
[391615381,1760706670347,-500.75130914,0.00024657,2]
[391615382,1760706670356,-501.38638341,0.00024657,2]
[391615383,1760706670366,-560.08104386,0.00024657,2]
[391615384,1760706670376,-500.0,0.00024657,2]
[391615385,1760706670385,-500.0,0.00024657,2]
[391615386,1760706670395,-500.0,0.00024657,2]
[391615387,1760706670404,-152.81143038,0.00024657,2]
[391615388,1760706670414,-502.96828959,0.00024657,2]
[391615389,1760706670423,-500.37961031,0.00024657,2]
[391615390,1760706670433,-500.0,0.00024657,2]
[391615391,1760706670442,-500.0,0.00024657,2]
[391615392,1760706670451,-500.0,0.00024657,2]
[391615393,1760706670461,-500.0,0.00024657,2]
[391615394,1760706670471,-501.40677125,0.00024657,2]
[391615395,1760706670481,-500.0,0.00024657,2]
[391615396,1760706670491,-500.0,0.00024657,2]
[391615397,1760706670501,-351.85297663,0.00024657,2]
[391615398,1760706670511,-649.92,0.00024657,2]
[391615399,1760706670521,-500.0,0.00024657,2]
[391615400,1760706670531,-587.14,0.00024657,2]
[391615401,1760706670541,-500.0,0.00024657,2]
[391615402,1760706670550,-500.0,0.00024657,2]
[391615403,1760706670560,-500.0,0.00024657,2]
[391615404,1760706670569,-1046.4,0.00024657,2]
[391615405,1760706670579,-500.0,0.00024657,2]
[391615406,1760706670588,-500.0,0.00024657,2]
[391615407,1760706670597,-500.0,0.00024657,2]
[391615408,1760706670607,-500.0,0.00024657,2]
[391615409,1760706670617,-500.0,0.00024657,2]
[391615410,1760706670626,-500.0,0.00024657,2]
[391615411,1760706670636,-500.0,0.00024657,2]
[391615412,1760706670645,-500.0,0.00024657,2]
[391615413,1760706670655,-500.0,0.00024657,2]
[391615414,1760706670664,-1485.37,0.00024657,2]
[391615415,1760706670674,-500.0,0.00024657,2]
[391615416,1760706670683,-2359.88,0.00024657,2]
[391615417,1760706670693,-500.0,0.00024657,2]
[391615418,1760706670702,-500.0,0.00024657,2]
[391615419,1760706670712,-1140.79,0.00024657,2]
[391615420,1760706670728,-500.0,0.00024657,2]
[391615421,1760706670744,-591.9156651,0.00024657,2]
[391615422,1760706670754,-500.0,0.00024657,2]
[391615423,1760706670763,-500.0,0.00024657,2]
[391615424,1760706670773,-500.0,0.00024657,2]
[391615425,1760706670783,-500.0,0.00024657,2]
[391615426,1760706670792,-500.0,0.00024657,2]
[391615427,1760706670801,-500.0,0.00024657,2]
[391615428,1760706670811,-594.34987389,0.00024657,2]
[391615429,1760706670820,-637.36437489,0.00024657,2]
[391615430,1760706670830,-500.0,0.00024657,2]
[391615431,1760706670839,-500.0,0.00024657,2]
[391615432,1760706670849,-500.0,0.00024657,2]
[391615433,1760706670858,-500.0,0.00024657,2]
[391615434,1760706670867,-500.0,0.00024657,2]
[391615435,1760706670877,-500.0,0.00024657,2]
[391615436,1760706670887,-500.0,0.00024657,2]
[391615437,1760706670897,-502.31946755,0.00024657,2]
[391615438,1760706670906,-522.5,0.00024657,2]
[391615439,1760706670916,-602.2425401,0.00024657,2]
[391615440,1760706670927,-500.0,0.00024657,2]
[391615441,1760706670941,-970.74,0.00024657,2]
[391615442,1760706670950,-500.0,0.00024657,2]
[391615443,1760706670960,-500.0,0.00024657,2]
[391615444,1760706670970,-500.0,0.00024657,2]
[391615445,1760706670982,-640.24001237,0.00024657,2]
[391615446,1760706670995,-500.0,0.00024657,2]
[391615447,1760706671005,-500.0,0.00024657,2]
[391615448,1760706671016,-500.0,0.00024657,2]
[391615449,1760706671025,-500.0,0.00024657,2]
[391615450,1760706671035,-500.0,0.00024657,2]
[391615451,1760706671044,-507.36,0.00024657,2]
[391615452,1760706671145,-535.20775871,0.00024657,2]
[391615453,1760706671155,-500.0,0.00024657,2]
[391615454,1760706671166,-500.0,0.00024657,2]
[391615455,1760706671176,-500.0,0.00024657,2]
[391615456,1760706671185,-500.0,0.00024657,2]
[391615457,1760706671195,-500.0,0.00024657,2]
[391615458,1760706671205,-500.0,0.00024657,2]
[391615459,1760706671215,-500.0,0.00024657,2]
[391615460,1760706671224,-500.0,0.00024657,2]
[391615461,1760706671234,-500.0,0.00024657,2]
[391615462,1760706671246,-579.8062309,0.00024657,2]
[391615463,1760706671256,-444.08711146,0.00024657,2]
[391615464,1760706671265,-716.79,0.00024657,2]
[391615465,1760706671275,-716.79,0.00024657,2]
[391615466,1760706671285,-716.79,0.00024657,2]
[391615467,1760706671294,-716.79,0.00024657,2]
[391615468,1760706671303,-549.16280787,0.00024657,2]
[391615469,1760706671313,-716.79,0.00024657,2]
[391615470,1760706671323,-716.79,0.00024657,2]
[391615471,1760706671332,-500.07471587,0.00024657,2]
[391615472,1760706671341,-500.0,0.00024657,2]
[391615473,1760706671351,-716.79,0.00024657,2]
[391615474,1760706671361,-716.79,0.00024657,2]
[391615475,1760706671370,-716.79,0.00024657,2]
[391615476,1760706671380,-500.0,0.00024657,2]
[391615477,1760706671389,-716.79,0.00024657,2]
[391615478,1760706671399,-500.0,0.00024657,2]
[391615479,1760706671408,-716.79,0.00024657,2]
[391615480,1760706671418,-716.79,0.00024657,2]
[391615481,1760706671427,-716.79,0.00024657,2]
[391615482,1760706671436,-500.0,0.00024657,2]
[391615483,1760706671445,-716.79,0.00024657,2]
[391615484,1760706671454,-716.79,0.00024657,2]
[391615485,1760706671464,-503.12401729,0.00024657,2]
[391615486,1760706671473,-716.79,0.00024657,2]
[391615487,1760706671483,-556.68161543,0.00024657,2]
[391615488,1760706671495,-716.79,0.00024657,2]
[391615489,1760706671505,-716.79,0.00024657,2]
[391615490,1760706671514,-716.79,0.00024657,2]
[391615491,1760706671523,-716.79,0.00024657,2]
[391615492,1760706671532,-500.0,0.00024657,2]
[391615493,1760706671542,-716.79,0.00024657,2]
[391615494,1760706671551,-500.0,0.00024657,2]
[391615495,1760706671560,-500.0,0.00024657,2]
[391615496,1760706671569,-716.79,0.00024657,2]
[391615497,1760706671579,-500.0,0.00024657,2]
[391615498,1760706671588,-716.79,0.00024657,2]
[391615499,1760706671598,-500.0,0.00024657,2]
[391615500,1760706671607,-500.0,0.00024657,2]
[391615501,1760706671617,-716.91373329,0.00024657,2]
[391615502,1760706671626,-500.0,0.00024657,2]
[391615503,1760706671636,-500.0,0.00024657,2]
[391615504,1760706671645,-500.0,0.00024657,2]
[391615505,1760706671654,-500.0,0.00024657,2]
[391615506,1760706671664,-500.0,0.00024657,2]
[391615507,1760706671673,-500.0,0.00024657,2]
[391615508,1760706671683,-500.0,0.00024657,2]
[391615509,1760706671692,-500.0,0.00024657,2]
[391615510,1760706671701,-500.0,0.00024657,2]
[391615511,1760706671711,-500.0,0.00024657,2]
[391615512,1760706671725,-500.0,0.00024657,2]
[391615513,1760706671737,-186.61263639,0.00024657,2]
[391615514,1760706671748,-500.0,0.00024657,2]
[391615515,1760706671757,-500.0,0.00024657,2]
[391615516,1760706671767,-507.99436477,0.00024657,2]
[391615517,1760706671777,-500.0,0.00024657,2]
[391615518,1760706671787,-500.58096487,0.00024657,2]
[391615519,1760706671797,-500.0,0.00024657,2]
[391615520,1760706671807,-501.1730539,0.00024657,2]
[391615521,1760706671818,-501.57358422,0.00024657,2]
[391615522,1760706671828,-500.0,0.00024657,2]
[391615523,1760706671838,-693.35,0.00024657,2]
[391615524,1760706671847,-500.85495046,0.00024657,2]
[391615525,1760706671856,-644.5,0.00024657,2]
[391615526,1760706671865,-500.0,0.00024657,2]
[391615527,1760706671874,-637.25581468,0.00024657,2]
[391615528,1760706671883,-500.0,0.00024657,2]
[391615529,1760706671893,-500.0,0.00024657,2]
[391615530,1760706671902,-500.0,0.00024657,2]
[391615531,1760706671911,-501.1747652,0.00024657,2]
[391615532,1760706671921,-500.0,0.00024657,2]
[391615533,1760706671931,-500.0,0.00024657,2]
[391615534,1760706671944,-500.0,0.00024657,2]
[391615535,1760706671953,-500.0,0.00024657,2]
[391615536,1760706671963,-500.0,0.00024657,2]
[391615537,1760706671972,-500.0,0.00024657,2]
[391615538,1760706671983,-500.0,0.00024657,2]
[391615539,1760706671994,-1506.26,0.00024657,2]
[391615540,1760706672003,-500.0,0.00024657,2]
[391615541,1760706672012,-500.0,0.00024657,2]
[391615542,1760706672022,-500.0,0.00024657,2]
[391615543,1760706672032,-500.0,0.00024657,2]
[391615544,1760706672041,-500.0,0.00024657,2]
[391615545,1760706672051,-309.36541044,0.00024657,2]
[391615546,1760706672060,-500.0,0.00024657,2]
[391615547,1760706672069,-668.62,0.00024657,2]
[391615548,1760706672079,-500.0,0.00024657,2]
[391615549,1760706672088,-500.0,0.00024657,2]
[391615550,1760706672098,-500.70570431,0.00024657,2]
[391615551,1760706672107,-500.0,0.00024657,2]
[391615552,1760706672116,-500.0,0.00024657,2]
[391615553,1760706672126,-500.0,0.00024657,2]
[391615554,1760706672135,-503.29696172,0.00024657,2]
[391615555,1760706672144,-515.30228906,0.00024657,2]
[391615556,1760706672153,-693.02,0.00024657,2]
[391615557,1760706672163,-501.78238902,0.00024657,2]
[391615558,1760706672172,-595.92710128,0.00024657,2]
[391615559,1760706672181,-492.9971836,0.00024657,2]
[391615560,1760706672191,-500.71179568,0.00024657,2]
[391615561,1760706672200,-500.0,0.00024657,2]
[391615562,1760706672210,-500.59214622,0.00024657,2]
[391615563,1760706672218,-500.7283046,0.00024657,2]
[391615564,1760706672228,-511.99051909,0.00024657,2]
[391615565,1760706672237,-502.70577992,0.00024657,2]
[391615566,1760706672246,-500.0,0.00024657,2]
[391615567,1760706672255,-500.83837505,0.00024657,2]
[391615568,1760706672265,-500.0,0.00024657,2]
[391615569,1760706672274,-506.1787198,0.00024657,2]
[391615570,1760706672285,-415.69862482,0.00024657,2]
[391615571,1760706672295,-500.0,0.00024657,2]
[391615572,1760706672304,-501.21386612,0.00024657,2]
[391615573,1760706672314,-508.6627353,0.00024657,2]
[391615574,1760706672323,-500.81542542,0.00024657,2]
[391615575,1760706672334,-502.27693421,0.00024657,2]
[391615576,1760706672344,-501.26002611,0.00024657,2]
[391615577,1760706672353,-500.0,0.00024657,2]
[391615578,1760706672362,-505.40913056,0.00024657,2]
[391615579,1760706672372,-500.81877924,0.00024657,2]
[391615580,1760706672382,-500.0,0.00024657,2]
[391615581,1760706672391,-500.71830403,0.00024657,2]
[391615582,1760706672400,-503.40317022,0.00024657,2]
[391615583,1760706672410,-500.0,0.00024657,2]
[391615584,1760706672419,-1249.99,0.00024657,2]
[391615585,1760706672430,-500.0,0.00024657,2]
[391615586,1760706672439,-500.0,0.00024657,2]
[391615587,1760706672449,-500.0,0.00024657,2]
[391615588,1760706672459,-500.0,0.00024657,2]
[391615589,1760706672468,-500.0,0.00024657,2]
[391615590,1760706672478,-500.0,0.00024657,2]
[391615591,1760706672487,-500.0,0.00024657,2]
[391615592,1760706672497,-500.0,0.00024657,2]
[391615593,1760706672506,-500.0,0.00024657,2]
[391615594,1760706672516,-500.0,0.00024657,2]
[391615595,1760706672526,-172.61198394,0.00024657,2]
[391615596,1760706672535,-500.0,0.00024657,2]
[391615597,1760706672544,-599.39513786,0.00024657,2]
[391615598,1760706672554,-500.84769744,0.00024657,2]
[391615599,1760706672563,-500.0,0.00024657,2]
[391615600,1760706672572,-502.21140252,0.00024657,2]
[391615601,1760706672581,-500.0,0.00024657,2]
[391615602,1760706672591,-501.57197209,0.00024657,2]
[391615603,1760706672599,-1297.73,0.00024657,2]
[391615604,1760706672609,-500.8030393,0.00024657,2]
[391615605,1760706672618,-500.0,0.00024657,2]
[391615606,1760706672631,-500.16683726,0.00024657,2]
[391615607,1760706672640,-500.0,0.00024657,2]
[391615608,1760706672650,-500.00000001,0.00024657,2]
[391615609,1760706672660,-1494.42,0.00024657,2]
[391615610,1760706672669,-500.0,0.00024657,2]
[391615611,1760706672678,-511.83416153,0.00024657,2]
[391615612,1760706672688,-500.0,0.00024657,2]
[391615613,1760706672699,-500.25961834,0.00024657,2]
[391615614,1760706672709,-500.0,0.00024657,2]
[391615615,1760706672719,-500.0,0.00024657,2]
[391615616,1760706672728,-555.15809907,0.00024657,2]
[391615617,1760706672737,-500.0,0.00024657,2]
[391615618,1760706672746,-500.0,0.00024657,2]
[391615619,1760706672755,-501.69406423,0.00024657,2]
[391615620,1760706672765,-500.0,0.00024657,2]
[391615621,1760706672774,-500.0,0.00024657,2]
[391615622,1760706672783,-532.42827854,0.00024657,2]
[391615623,1760706672793,-500.0,0.00024657,2]
[391615624,1760706672802,-501.2033578,0.00024657,2]
[391615625,1760706672812,-502.63805517,0.00024657,2]
[391615626,1760706672822,-500.0,0.00024657,2]
[391615627,1760706672831,-500.0,0.00024657,2]
[391615628,1760706672840,-500.0,0.00024657,2]
[391615629,1760706672849,-500.0,0.00024657,2]
[391615630,1760706672859,-500.0,0.00024657,2]
[391615631,1760706672868,-500.0,0.00024657,2]
[391615632,1760706672877,-549.11542968,0.00024657,2]
[391615633,1760706672887,-500.0,0.00024657,2]
[391615634,1760706672896,-500.0,0.00024657,2]
[391615635,1760706672906,-1421.83,0.00024657,2]
[391615636,1760706672915,-500.7026329,0.00024657,2]
[391615637,1760706672924,-500.0,0.00024657,2]
[391615638,1760706672934,-500.0,0.00024657,2]
[391615639,1760706672946,-500.0,0.00024657,2]
[391615640,1760706672956,-500.0,0.00024657,2]
[391615641,1760706672966,-500.0,0.00024657,2]
[391615642,1760706672975,-500.0,0.00024657,2]
[391615643,1760706672987,-500.0,0.00024657,2]
[391615644,1760706672996,-500.0,0.00024657,2]
[391615645,1760706673007,-361.53837348,0.00024657,2]
[391615646,1760706673016,-500.0,0.00024657,2]
[391615647,1760706673026,-500.0,0.00024657,2]
[391615648,1760706673035,-553.15,0.00024657,2]
[391615649,1760706673044,-500.0,0.00024657,2]
[391615650,1760706673053,-500.0,0.00024657,2]
[391615651,1760706673062,-500.0,0.00024657,2]
[391615652,1760706673071,-500.0,0.00024657,2]
[391615653,1760706673080,-500.0,0.00024657,2]
[391615654,1760706673089,-500.0,0.00024657,2]
[391615655,1760706673099,-500.0,0.00024657,2]
[391615656,1760706673109,-500.0,0.00024657,2]
[391615657,1760706673118,-500.0,0.00024657,2]
[391615658,1760706673127,-500.0,0.00024657,2]
[391615659,1760706673136,-500.0,0.00024657,2]
[391615660,1760706673146,-500.0,0.00024657,2]
[391615661,1760706673155,-161.18941938,0.00024657,2]
[391615662,1760706673164,-500.0,0.00024657,2]
[391615663,1760706673174,-500.0,0.00024657,2]
[391615664,1760706673184,-500.97576652,0.00024657,2]
[391615665,1760706673194,-500.0,0.00024657,2]
[391615666,1760706673202,-500.15262092,0.00024657,2]
[391615667,1760706673212,-500.74340602,0.00024657,2]
[391615668,1760706673222,-500.0,0.00024657,2]
[391615669,1760706673231,-501.03620469,0.00024657,2]
[391615670,1760706673241,-500.0,0.00024657,2]
[391615671,1760706673250,-500.0,0.00024657,2]
[391615672,1760706673259,-500.0,0.00024657,2]
[391615673,1760706673269,-511.62532172,0.00024657,2]
[391615674,1760706673278,-500.0,0.00024657,2]
[391615675,1760706673288,-500.67570618,0.00024657,2]
[391615676,1760706673298,-500.0,0.00024657,2]
[391615677,1760706673307,-500.0,0.00024657,2]
[391615678,1760706673316,-500.0,0.00024657,2]
[391615679,1760706673325,-541.61245068,0.00024657,2]
[391615680,1760706673335,-500.0,0.00024657,2]
[391615681,1760706673344,-501.07546375,0.00024657,2]
[391615682,1760706673353,-500.0,0.00024657,2]
[391615683,1760706673363,-500.0,0.00024657,2]
[391615684,1760706673373,-500.7688304,0.00024657,2]
[391615685,1760706673382,-500.0,0.00024657,2]
[391615686,1760706673391,-500.0,0.00024657,2]
[391615687,1760706673401,-500.0,0.00024657,2]
[391615688,1760706673411,-500.0,0.00024657,2]
[391615689,1760706673420,-500.0,0.00024657,2]
[391615690,1760706673429,-500.65035646,0.00024657,2]
[391615691,1760706673438,-500.87242962,0.00024657,2]
[391615692,1760706673448,-500.0,0.00024657,2]
[391615693,1760706673457,-500.0,0.00024657,2]
[391615694,1760706673467,-500.0,0.00024657,2]
[391615695,1760706673477,-500.0,0.00024657,2]
[391615696,1760706673486,-500.0,0.00024657,2]
[391615697,1760706673495,-500.9565902,0.00024657,2]
[391615698,1760706673504,-500.0,0.00024657,2]
[391615699,1760706673514,-608.98904061,0.00024657,2]
[391615700,1760706673523,-500.15019699,0.00024657,2]
[391615701,1760706673533,-500.35724748,0.00024657,2]
[391615702,1760706673542,-501.70310196,0.00024657,2]
[391615703,1760706673551,-503.12123125,0.00024657,2]
[391615704,1760706673562,-500.0,0.00024657,2]
[391615705,1760706673571,-500.0,0.00024657,2]
[391615706,1760706673580,-500.0,0.00024657,2]
[391615707,1760706673589,-500.0,0.00024657,2]
[391615708,1760706673599,-500.64172029,0.00024657,2]
[391615709,1760706673608,-500.0,0.00024657,2]
[391615710,1760706673618,-501.36212952,0.00024657,2]
[391615711,1760706673628,-500.0,0.00024657,2]
[391615712,1760706673637,-500.0,0.00024657,2]
[391615713,1760706673646,-500.0,0.00024657,2]
[391615714,1760706673656,-500.0,0.00024657,2]
[391615715,1760706673665,-500.0,0.00024657,2]
[391615716,1760706673675,-500.0,0.00024657,2]
[391615717,1760706673684,-500.0,0.00024657,2]
[391615718,1760706673693,-500.0,0.00024657,2]
[391615719,1760706673703,-500.0,0.00024657,2]
[391615720,1760706673713,-500.57384163,0.00024657,2]
[391615721,1760706673723,-500.0,0.00024657,2]
[391615722,1760706673732,-500.0,0.00024657,2]
[391615723,1760706673741,-500.0,0.00024657,2]
[391615724,1760706673751,-840.86,0.00024657,2]
[391615725,1760706673760,-500.0,0.00024657,2]
[391615726,1760706673769,-500.0,0.00024657,2]
[391615727,1760706673779,-500.0,0.00024657,2]
[391615728,1760706673788,-271.35106557,0.00024657,2]
[391615729,1760706673797,-501.15199152,0.00024657,2]
[391615730,1760706673806,-500.0,0.00024657,2]
[391615731,1760706673816,-500.56211323,0.00024657,2]
[391615732,1760706673825,-516.28143483,0.00024657,2]
[391615733,1760706673835,-500.0,0.00024657,2]
[391615734,1760706673844,-500.0,0.00024657,2]
[391615735,1760706673853,-500.46171795,0.00024657,2]
[391615736,1760706673863,-500.0,0.00024657,2]
[391615737,1760706673871,-518.99910207,0.00024657,2]
[391615738,1760706673882,-551.19942865,0.00024657,2]
[391615739,1760706673891,-500.0,0.00024657,2]
[391615740,1760706673900,-500.0,0.00024657,2]
[391615741,1760706673910,-500.29088162,0.00024657,2]
[391615742,1760706673919,-500.29396371,0.00024657,2]
[391615743,1760706673929,-500.10502246,0.00024657,2]
[391615744,1760706673942,-500.0,0.00024657,2]
[391615745,1760706673951,-500.0,0.00024657,2]
[391615746,1760706673961,-500.0,0.00024657,2]
[391615747,1760706673971,-500.0,0.00024657,2]
[391615748,1760706673981,-500.0,0.00024657,2]
[391615749,1760706673991,-500.0,0.00024657,2]
[391615750,1760706674001,-501.09719711,0.00024657,2]
[391615751,1760706674011,-500.0,0.00024657,2]
[391615752,1760706674020,-502.86816992,0.00024657,2]
[391615753,1760706674030,-499.11889008,0.00024657,2]
[391615754,1760706674039,-500.0,0.00024657,2]
[391615755,1760706674048,-500.0,0.00024657,2]
[391615756,1760706674058,-500.0,0.00024657,2]
[391615757,1760706674067,-500.0,0.00024657,2]
[391615758,1760706674076,-500.0,0.00024657,2]
[391615759,1760706674086,-500.0,0.00024657,2]
[391615760,1760706674095,-502.02201423,0.00024657,2]
[391615761,1760706674106,-500.0,0.00024657,2]
[391615762,1760706674116,-1604.59,0.00024657,2]
[391615763,1760706674126,-500.0,0.00024657,2]
[391615764,1760706674135,-504.21820542,0.00024657,2]